fUSD/lending_fUSD_20260202
["ID","MTS","AMOUNT","RATE_DAILY","PERIOD"]
[404335831,1770066644903,-500.0,0.00013973,2]
[404335832,1770066644913,-500.0,0.00013973,2]
[404335833,1770066644923,-541.62569807,0.00013973,2]
[404335834,1770066644932,-500.0,0.00013973,2]
[404335835,1770066644941,-500.0,0.00013973,2]
[404335836,1770066644951,-163.07853281,0.00013973,2]
[404335837,1770066644960,-500.0,0.00013973,2]
[404335838,1770066644969,-500.0,0.00013973,2]
[404335839,1770066644978,-500.0,0.00013973,2]
[404335840,1770066644987,-500.0,0.00013973,2]
[404335841,1770066644997,-500.0,0.00013973,2]
[404335842,1770066645006,-500.0,0.00013973,2]
[404335843,1770066645015,-500.0,0.00013973,2]
[404335844,1770066645024,-500.0,0.00013973,2]
[404335845,1770066645033,-500.0,0.00013973,2]
[404335846,1770066645042,-194.72792766,0.00014096,2]
[404335847,1770066645055,-233.51889341,0.00014096,2]
[404335848,1770066645064,-1592.87721993,0.00014096,2]
[404335849,1770066645073,-500.0,0.0001411,2]
[404335850,1770066645082,-500.0,0.00014164,2]
[404335851,1770066645093,-748.74,0.00014241,2]
[404335852,1770066645102,-748.74,0.00014241,2]
[404335853,1770066645111,-748.74,0.00014241,2]
[404335854,1770066645121,-748.74,0.00014241,2]
[404335855,1770066645132,-748.75883379,0.00014241,2]
[404335856,1770066645141,-521.7,0.00014241,2]
[404335857,1770066645151,-521.7,0.00014241,2]
[404335858,1770066645160,-521.7,0.00014241,2]
[404335859,1770066645170,-521.7,0.00014241,2]
[404335860,1770066645179,-521.88046437,0.00014241,2]
[404335861,1770066645188,-565.72,0.00014241,2]
[404335862,1770066645198,-565.72,0.00014241,2]
[404335863,1770066645207,-565.72,0.00014241,2]
[404335864,1770066645216,-565.72,0.00014241,2]
[404335865,1770066645225,-565.85807212,0.00014241,2]
[404335866,1770066645234,-1373.93,0.00014241,2]
[404335867,1770066645243,-1373.93,0.00014241,2]
[404335868,1770066645251,-1373.93,0.00014241,2]
[404335869,1770066645260,-1373.93,0.00014241,2]
[404335870,1770066645270,-1374.00686126,0.00014241,2]
[404335871,1770066645279,-1235.79,0.00014241,2]
[404335872,1770066645288,-1235.79,0.00014241,2]
[404335873,1770066645297,-1235.79,0.00014241,2]
[404335874,1770066645306,-1235.79,0.00014241,2]
[404335875,1770066645315,-1235.97856515,0.00014241,2]
[404335876,1770066645324,-639.93,0.00014241,2]
[404335877,1770066645333,-639.93,0.00014241,2]
[404335878,1770066645343,-639.93,0.00014241,2]
[404335879,1770066645352,-639.93,0.00014241,2]
[404335880,1770066645361,-640.02279054,0.00014241,2]
[404335881,1770066645371,-1104.37,0.00014241,2]
[404335882,1770066645380,-1104.37,0.00014241,2]
[404335883,1770066645389,-1104.37,0.00014241,2]
[404335884,1770066645399,-1104.37,0.00014241,2]
[404335885,1770066645409,-1104.41994886,0.00014241,2]
[404335886,1770066645418,-596.97,0.00014241,2]
[404335887,1770066645427,-596.97,0.00014241,2]
[404335888,1770066645436,-596.97,0.00014241,2]
[404335889,1770066645446,-596.97,0.00014241,2]
[404335890,1770066645456,-597.07967228,0.00014241,2]
[404335891,1770066645465,-1000.0,0.00014244,2]
[404335892,1770066645475,-868.9,0.00014275,2]
[404335893,1770066645483,-1252.0,0.00014324,2]
[404335894,1770066645492,-4609.0,0.00014325,2]
[404335895,1770066645502,-773.23,0.0001433,2]
[404335896,1770066645511,-642.09,0.00014381,2]
[404335897,1770066645520,-626.72,0.00014381,2]
[404335898,1770066645530,-6317.2,0.00014384,2]
[404335899,1770066645539,-500.0,0.00014384,2]
[404335900,1770066645548,-500.0,0.00014411,2]
[404335901,1770066645558,-1000.0,0.00014521,2]
[404335902,1770066645567,-1000.0,0.00014521,2]
[404335903,1770066645576,-1000.0,0.00014521,2]
[404335904,1770066645586,-1000.0,0.00014521,2]
[404335905,1770066645595,-1000.0,0.00014521,2]
[404335906,1770066645604,-503.87544057,0.00014521,2]
[404335907,1770066645614,-1000.0,0.00014521,2]
[404335908,1770066645623,-1000.0,0.00014521,2]
[404335909,1770066645632,-1000.0,0.00014521,2]
[404335910,1770066645641,-545.34481126,0.00014521,2]
[404335911,1770066645651,-1000.0,0.00014521,2]
[404335912,1770066645660,-543.53042842,0.00014521,2]
[404335913,1770066645670,-1000.0,0.00014521,2]
[404335914,1770066645679,-1046.2635897,0.00014521,2]
[404335915,1770066645688,-259.40505883,0.00014521,2]
[404335916,1770066645747,-1000.0,0.00014521,2]
[404335917,1770066645757,-1002.28291878,0.00014521,2]
[404335918,1770066645766,-1000.0,0.00014521,2]
[404335919,1770066645775,-1000.0,0.00014521,2]
[404335920,1770066645784,-1000.0,0.00014521,2]
[404335921,1770066645793,-1000.0,0.00014521,2]
[404335922,1770066645803,-156.95111861,0.00014521,2]
[404335923,1770066645812,-652.81544497,0.00014521,2]
[404335924,1770066645820,-1000.0,0.00014521,2]
[404335925,1770066645829,-1000.0,0.00014521,2]
[404335926,1770066645839,-245.04092473,0.00014521,2]
[404335927,1770066645849,-868.9,0.00014549,2]
[404335928,1770066645859,-773.23,0.00014604,2]
[404335929,1770066645868,-201.93286099,0.00014644,2]
[404335930,1770066645877,-242.15909246,0.00014644,2]
[404335931,1770066645887,-1651.81367706,0.00014644,2]
[404335932,1770066645896,-50502.32108768,0.00014669,2]
[404335933,1770066645905,-64477.25482088,0.00014669,2]
[404335934,1770066645914,-569.72,0.00014675,2]
[404335935,1770066645923,-30778.88929482,0.00014716,2]
[404335936,1770066645932,-642.09,0.00014744,2]
[404335937,1770066645941,-626.72,0.00014744,2]
[404335938,1770066645951,-868.9,0.00014823,2]
[404335939,1770066645960,-181.63,0.00014838,2]
[404335940,1770066645969,-773.23,0.00014878,2]
[404335942,1770066645978,-500.0,0.00014932,2]
[404335943,1770066645987,-250.0,0.00015,2]
[404335944,1770066645997,-642.09,0.00015068,2]
[404335945,1770066646006,-626.72,0.00015068,2]
[404335946,1770066646015,-1506.79391477,0.00015068,2]
[404335947,1770066646025,-1500.0,0.00015068,2]
[404335950,1770066646034,-1582.73923754,0.00015068,2]
[404335952,1770066646043,-223.77841226,0.00015068,2]
[404335953,1770066646053,-1500.0,0.00015068,2]
[404335954,1770066646066,-1539.34306558,0.00015068,2]
[404335955,1770066646075,-1500.0,0.00015068,2]
[404335956,1770066646084,-1500.0,0.00015068,2]
[404335957,1770066646093,-1500.0,0.00015068,2]
[404335959,1770066646103,-1500.0,0.00015068,2]
[404335961,1770066646113,-1023.62775042,0.00015068,2]
[404335963,1770066646123,-1500.0,0.00015068,2]
[404335965,1770066646134,-411.8365552,0.00015068,2]
[404335967,1770066646143,-1500.0,0.00015068,2]
[404335968,1770066646153,-1500.0,0.00015068,2]
[404335970,1770066646163,-1500.0,0.00015068,2]
[404335972,1770066646173,-550.7159852,0.00015068,2]
[404335974,1770066646183,-6317.2,0.00015068,2]
[404335976,1770066646194,-988.5,0.00015097,2]
[404335978,1770066646203,-773.23,0.00015152,2]
[404335980,1770066646214,-346.92554585,0.0001519,2]
[404335982,1770066646224,-599.60298507,0.00015191,2]
[404335984,1770066646234,-747.8093786,0.00015191,2]
[404335986,1770066646243,-209.40437684,0.00015192,2]
[404335988,1770066646253,-251.11897888,0.00015192,2]
[404335990,1770066646262,-1712.93078312,0.00015192,2]
[404335992,1770066646272,-41644.9242,0.00015216,2]
[404335994,1770066646282,-500.0,0.00015288,2]
[404335996,1770066646291,-230.64189733,0.00015343,2]
[404335998,1770066646302,-50502.32108768,0.00015366,2]
[404335999,1770066646312,-64477.25482088,0.00015366,2]
[404336000,1770066646320,-5971.89146312,0.000154,2]
[404336001,1770066646330,-189.9,0.00015465,2]
[404336002,1770066646341,-500.63586771,0.00015473,2]
[404336003,1770066646349,-163.12661798,0.00015473,2]
[404336004,1770066646359,-163.34993731,0.00015473,2]
[404336005,1770066646368,-500.46237197,0.00015473,2]
[404336006,1770066646378,-500.0,0.00015473,2]
[404336007,1770066646389,-500.0,0.00015473,2]
[404336008,1770066646399,-522.30858015,0.00015473,2]
[404336009,1770066646408,-500.0,0.00015473,2]
[404336010,1770066646417,-500.6120606,0.00015473,2]
[404336011,1770066646427,-161.45537985,0.00015473,2]
[404336012,1770066646435,-500.0,0.00015473,2]
[404336013,1770066646444,-500.62768041,0.00015473,2]
[404336014,1770066646454,-500.0,0.00015473,2]
[404336015,1770066646463,-500.0,0.00015473,2]
[404336016,1770066646472,-500.0,0.00015473,2]
[404336017,1770066646482,-500.0,0.00015473,2]
[404336018,1770066646492,-500.0,0.00015473,2]
[404336019,1770066646503,-500.0,0.00015473,2]
[404336020,1770066646513,-574.06272579,0.00015473,2]
[404336021,1770066646523,-163.46067997,0.00015473,2]
[404336022,1770066646533,-500.0,0.00015473,2]
[404336023,1770066646542,-500.40906893,0.00015473,2]
[404336024,1770066646551,-160.54295648,0.00015473,2]
[404336025,1770066646561,-464.35211832,0.00015473,2]
[404336026,1770066646571,-151.07783782,0.00015473,2]
[404336027,1770066646581,-500.0,0.00015473,2]
[404336028,1770066646592,-500.0,0.00015473,2]
[404336029,1770066646602,-500.0,0.00015473,2]
[404336030,1770066646612,-460.30125151,0.00015473,2]
[404336031,1770066646622,-500.0,0.00015473,2]
[404336032,1770066646630,-340.09137446,0.00015473,2]
[404336033,1770066646640,-500.0,0.00015473,2]
[404336034,1770066646649,-500.0,0.00015473,2]
[404336035,1770066646658,-500.0,0.00015473,2]
[404336036,1770066646667,-559.67308476,0.00015473,2]
[404336037,1770066646676,-200.70028911,0.00015473,2]
[404336038,1770066646685,-500.0,0.00015473,2]
[404336039,1770066646694,-500.0,0.00015473,2]
[404336040,1770066646703,-500.0,0.00015473,2]
[404336041,1770066646711,-512.94754167,0.00015473,2]
[404336042,1770066646720,-500.0,0.00015473,2]
[404336043,1770066646729,-500.0,0.00015473,2]
[404336044,1770066646739,-500.0,0.00015473,2]
[404336045,1770066646748,-500.0,0.00015473,2]
[404336046,1770066646758,-500.0,0.00015473,2]
[404336047,1770066646767,-500.0,0.00015473,2]
[404336048,1770066646776,-336.43827265,0.00015473,2]
[404336049,1770066646785,-500.0,0.00015473,2]
[404336050,1770066646795,-500.0,0.00015473,2]
[404336052,1770066646804,-500.0,0.00015473,2]
[404336053,1770066646814,-500.0,0.00015473,2]
[404336054,1770066646824,-500.0,0.00015473,2]
[404336055,1770066646833,-160.61738464,0.00015473,2]
[404336056,1770066646843,-500.41005015,0.00015473,2]
[404336057,1770066646852,-550.09529227,0.00015473,2]
[404336058,1770066646862,-500.0,0.00015473,2]
[404336059,1770066646874,-500.0,0.00015473,2]
[404336060,1770066646883,-500.0,0.00015473,2]
[404336061,1770066646892,-500.0,0.00015473,2]
[404336062,1770066646901,-500.0,0.00015473,2]
[404336063,1770066646910,-500.0,0.00015473,2]
[404336064,1770066646919,-168.03217975,0.00015473,2]
[404336065,1770066646928,-500.0,0.00015473,2]
[404336066,1770066646937,-500.0,0.00015473,2]
[404336067,1770066646946,-500.0,0.00015473,2]
[404336068,1770066646955,-500.0,0.00015473,2]
[404336069,1770066646964,-500.0,0.00015473,2]
[404336070,1770066646974,-593.37800921,0.00015473,2]
[404336071,1770066646982,-565.00011393,0.00015473,2]
[404336072,1770066646991,-486.29318482,0.00015473,2]
[404336073,1770066647000,-500.0,0.00015473,2]
[404336074,1770066647009,-500.0,0.00015473,2]
[404336075,1770066647018,-500.0,0.00015473,2]
[404336076,1770066647027,-500.0,0.00015473,2]
[404336077,1770066647036,-500.0,0.0001548,2]
[404336078,1770066647045,-181.60743456,0.00015589,2]
[404336079,1770066647056,-2000.0,0.00015616,2]
[404336080,1770066647067,-1517.4616613,0.00015616,2]
[404336081,1770066647076,-2000.0,0.00015616,2]
[404336082,1770066647085,-1666.54524169,0.00015616,2]
[404336083,1770066647094,-2000.0,0.00015616,2]
[404336084,1770066647105,-2000.0,0.00015616,2]
[404336085,1770066647114,-1376.09004687,0.00015616,2]
[404336086,1770066647124,-2000.0,0.00015616,2]
[404336087,1770066647134,-2000.0,0.00015616,2]
[404336088,1770066647144,-2000.0,0.00015616,2]
[404336089,1770066647153,-159.60859955,0.00015699,2]
[404336090,1770066647163,-360.21,0.00015702,2]
[404336091,1770066647172,-217.15233878,0.0001574,2]
[404336092,1770066647181,-260.4103811,0.0001574,2]
[404336093,1770066647191,-1776.30922209,0.0001574,2]
[404336094,1770066647200,-6317.2,0.00015753,2]
[404336095,1770066647210,-6453.0,0.00015757,2]
[404336096,1770066647219,-2129.0,0.00015762,2]
[404336097,1770066647229,-1000.0,0.00015826,2]
[404336098,1770066647238,-1000.0,0.00015918,2]
[404336099,1770066647247,-5000.0,0.0001596,2]
[404336100,1770066647257,-200.896366,0.00016,2]
[404336101,1770066647266,-500.0,0.00016021,2]
[404336102,1770066647275,-500.0,0.00016021,2]
[404336103,1770066647285,-494.98211284,0.00016021,2]
[404336104,1770066647294,-960.71724918,0.00016021,2]
[404336105,1770066647303,-1000.0,0.00016021,2]
[404336106,1770066647313,-1000.0,0.00016021,2]
[404336107,1770066647323,-964.09949899,0.00016021,2]
[404336108,1770066647332,-1000.0,0.00016021,2]
[404336109,1770066647341,-500.0,0.00016021,2]
[404336110,1770066647350,-1000.0,0.00016021,2]
[404336111,1770066647359,-486.90150068,0.00016021,2]
[404336112,1770066647368,-1000.0,0.00016021,2]
[404336113,1770066647378,-500.0,0.00016021,2]
[404336114,1770066647387,-1128.44291984,0.00016021,2]
[404336115,1770066647396,-504.20951303,0.00016021,2]
[404336116,1770066647405,-335.25607575,0.00016021,2]
[404336117,1770066647415,-1000.0,0.00016021,2]
[404336118,1770066647424,-502.15998223,0.00016021,2]
[404336119,1770066647433,-871.81162767,0.00016021,2]
[404336120,1770066647443,-1000.0,0.00016021,2]
[404336121,1770066647452,-1000.0,0.00016021,2]
[404336122,1770066647462,-1000.0,0.00016021,2]
[404336123,1770066647471,-1000.0,0.00016021,2]
[404336124,1770066647480,-1000.0,0.00016021,2]
[404336125,1770066647489,-1000.0,0.00016021,2]
[404336126,1770066647498,-1000.0,0.00016021,2]
[404336127,1770066647508,-1000.0,0.00016021,2]
[404336128,1770066647517,-1000.0,0.00016021,2]
[404336129,1770066647526,-1000.0,0.00016021,2]
[404336130,1770066647535,-1000.0,0.00016021,2]
[404336131,1770066647545,-1000.0,0.00016021,2]
[404336132,1770066647554,-1000.0,0.00016021,2]
[404336133,1770066647563,-1000.0,0.00016021,2]
[404336134,1770066647572,-500.0,0.00016021,2]
[404336135,1770066647581,-1000.0,0.00016021,2]
[404336136,1770066647590,-1000.0,0.00016021,2]
[404336137,1770066647599,-1000.0,0.00016021,2]
[404336138,1770066647609,-500.0,0.00016021,2]
[404336139,1770066647618,-1000.0,0.00016021,2]
[404336140,1770066647627,-1000.0,0.00016021,2]
[404336141,1770066647636,-1000.0,0.00016021,2]
[404336142,1770066647645,-1000.0,0.00016021,2]
[404336143,1770066647654,-500.0,0.00016028,2]
[404336144,1770066647663,-50502.32108768,0.00016064,2]
[404336145,1770066647672,-64477.25482088,0.00016064,2]
[404336146,1770066647681,-1000.0,0.00016113,2]
[404336147,1770066647691,-1000.0,0.00016113,2]
[404336148,1770066647700,-1000.0,0.00016113,2]
[404336149,1770066647709,-1000.0,0.00016113,2]
[404336150,1770066647718,-1000.0,0.00016113,2]
[404336151,1770066647727,-1000.0,0.00016113,2]
[404336152,1770066647736,-747.502,0.00016113,2]
[404336153,1770066647745,-642.09,0.00016115,2]
[404336154,1770066647755,-626.72,0.00016115,2]
[404336155,1770066647764,-9999.99,0.00016116,2]
[404336156,1770066647773,-2500.0,0.00016164,2]
[404336157,1770066647782,-1812.26829567,0.00016164,2]
[404336158,1770066647792,-327.96194417,0.00016164,2]
[404336159,1770066647802,-809.50611672,0.00016164,2]
[404336160,1770066647811,-1018.20605405,0.00016164,2]
[404336161,1770066647820,-2500.0,0.00016164,2]
[404336162,1770066647829,-2500.0,0.00016164,2]
[404336163,1770066647839,-225.18697532,0.00016288,2]
[404336164,1770066647848,-270.0455652,0.00016288,2]
[404336165,1770066647857,-1842.03266331,0.00016288,2]
[404336166,1770066647867,-569.72,0.00016336,2]
[404336167,1770066647876,-181.63,0.00016369,2]
[404336168,1770066647885,-519.2350024,0.00016437,2]
[404336169,1770066647894,-1894.56667805,0.00016438,2]
[404336170,1770066647903,-1023.30039104,0.00016438,2]
[404336171,1770066647912,-1023.30039104,0.00016438,2]
[404336172,1770066647922,-1023.30039104,0.00016438,2]
[404336173,1770066647931,-1023.30039104,0.00016438,2]
[404336174,1770066647940,-1023.30039104,0.00016438,2]
[404336175,1770066647949,-1023.30039104,0.00016438,2]
[404336176,1770066647958,-1023.30039104,0.00016438,2]
[404336177,1770066647968,-1023.30039104,0.00016438,2]
[404336178,1770066647977,-1023.30039104,0.00016438,2]
[404336179,1770066647985,-1023.30039104,0.00016438,2]
[404336180,1770066647994,-1023.30039104,0.00016438,2]
[404336181,1770066648002,-1023.30039104,0.00016438,2]
[404336182,1770066648011,-1023.30039104,0.00016438,2]
[404336183,1770066648020,-1023.30039104,0.00016438,2]
[404336184,1770066648029,-1023.30039104,0.00016438,2]
[404336185,1770066648038,-1023.30039104,0.00016438,2]
[404336186,1770066648047,-1023.30039104,0.00016438,2]
[404336187,1770066648061,-1023.30039104,0.00016438,2]
[404336188,1770066648070,-1023.30039104,0.00016438,2]
[404336189,1770066648079,-1023.30039104,0.00016438,2]
[404336190,1770066648088,-1023.30039104,0.00016438,2]
[404336191,1770066648098,-1023.30039104,0.00016438,2]
[404336192,1770066648107,-1023.30039104,0.00016438,2]
[404336193,1770066648116,-1023.30039104,0.00016438,2]
[404336194,1770066648127,-1023.30039104,0.00016438,2]
[404336195,1770066648136,-1023.30039104,0.00016438,2]
[404336196,1770066648145,-1023.30039104,0.00016438,2]
[404336197,1770066648154,-1023.30039104,0.00016438,2]
[404336198,1770066648163,-1023.30039104,0.00016438,2]
[404336199,1770066648172,-1023.30039104,0.00016438,2]
[404336200,1770066648181,-1023.30039104,0.00016438,2]
[404336201,1770066648190,-1023.30039104,0.00016438,2]
[404336202,1770066648199,-1023.30039104,0.00016438,2]
[404336203,1770066648209,-1023.30039104,0.00016438,2]
[404336204,1770066648218,-1023.30039104,0.00016438,2]
[404336205,1770066648229,-1023.30039104,0.00016438,2]
[404336206,1770066648238,-1023.30039104,0.00016438,2]
[404336207,1770066648247,-1023.30039104,0.00016438,2]
[404336208,1770066648257,-1023.30039104,0.00016438,2]
[404336209,1770066648266,-1023.30039104,0.00016438,2]
[404336210,1770066648275,-1023.30039104,0.00016438,2]
[404336211,1770066648284,-1023.30039104,0.00016438,2]
[404336212,1770066648295,-1023.30039104,0.00016438,2]
[404336213,1770066648304,-1023.30039104,0.00016438,2]
[404336214,1770066648313,-1023.30039104,0.00016438,2]
[404336215,1770066648323,-1023.30039104,0.00016438,2]
[404336216,1770066648332,-1023.30039104,0.00016438,2]
[404336217,1770066648341,-1023.30039104,0.00016438,2]
[404336218,1770066648351,-1023.30039104,0.00016438,2]
[404336219,1770066648361,-1023.30039104,0.00016438,2]
[404336220,1770066648371,-1023.30039104,0.00016438,2]
[404336221,1770066648380,-1023.30039104,0.00016438,2]
[404336222,1770066648390,-1023.30039104,0.00016438,2]
[404336223,1770066648400,-1023.30039104,0.00016438,2]
[404336224,1770066648410,-997.71788126,0.00016438,2]
[404336225,1770066648420,-997.71788126,0.00016438,2]
[404336226,1770066648430,-997.71788126,0.00016438,2]
[404336227,1770066648440,-997.71788126,0.00016438,2]
[404336228,1770066648449,-997.71788126,0.00016438,2]
[404336229,1770066648458,-997.71788126,0.00016438,2]
[404336230,1770066648468,-997.71788126,0.00016438,2]
[404336231,1770066648477,-997.71788126,0.00016438,2]
[404336232,1770066648486,-997.71788126,0.00016438,2]
[404336233,1770066648496,-997.71788126,0.00016438,2]
[404336234,1770066648505,-997.71788126,0.00016438,2]
[404336235,1770066648516,-997.71788126,0.00016438,2]
[404336236,1770066648526,-997.71788126,0.00016438,2]
[404336237,1770066648535,-997.71788126,0.00016438,2]
[404336238,1770066648545,-997.71788126,0.00016438,2]
[404336239,1770066648554,-997.71788126,0.00016438,2]
[404336240,1770066648564,-997.71788126,0.00016438,2]
[404336241,1770066648573,-997.71788126,0.00016438,2]
[404336242,1770066648583,-997.71788126,0.00016438,2]
[404336243,1770066648592,-997.71788126,0.00016438,2]
[404336244,1770066648602,-997.71788126,0.00016438,2]
[404336245,1770066648613,-997.71788126,0.00016438,2]
[404336246,1770066648623,-997.71788126,0.00016438,2]
[404336247,1770066648632,-997.71788126,0.00016438,2]
[404336248,1770066648642,-997.71788126,0.00016438,2]
[404336249,1770066648652,-997.71788126,0.00016438,2]
[404336250,1770066648662,-997.71788126,0.00016438,2]
[404336251,1770066648672,-997.71788126,0.00016438,2]
[404336252,1770066648682,-997.71788126,0.00016438,2]
[404336253,1770066648691,-997.71788126,0.00016438,2]
[404336254,1770066648701,-997.71788126,0.00016438,2]
[404336255,1770066648712,-997.71788126,0.00016438,2]
[404336256,1770066648723,-997.71788126,0.00016438,2]
[404336257,1770066648732,-997.7178812,0.00016438,2]
[404336258,1770066648742,-997.7178812,0.00016438,2]
[404336259,1770066648754,-997.7178812,0.00016438,2]
[404336260,1770066648765,-6317.2,0.00016438,2]
[404336261,1770066648774,-150.25668222,0.00016438,2]
[404336262,1770066648784,-800.0,0.00016438,2]
[404336263,1770066648794,-150.0,0.00016473,2]
[404336264,1770066648804,-159.60859955,0.00016484,2]
[404336265,1770066648813,-1000.0,0.00016515,2]
[404336266,1770066648822,-359.76179104,0.00016559,2]
[404336267,1770066648831,-642.09,0.00016568,2]
[404336268,1770066648840,-642.09,0.00016568,2]
[404336269,1770066648851,-642.09,0.00016568,2]
[404336270,1770066648862,-642.09,0.00016568,2]
[404336271,1770066648872,-642.24920592,0.00016568,2]
[404336272,1770066648883,-626.72,0.00016568,2]
[404336273,1770066648892,-626.72,0.00016568,2]
[404336274,1770066648902,-626.72,0.00016568,2]
[404336275,1770066648913,-626.72,0.00016568,2]
[404336276,1770066648924,-626.72317558,0.00016568,2]
[404336277,1770066648934,-1501.04497332,0.00016568,2]
[404336278,1770066648945,-503.70343212,0.00016568,2]
[404336279,1770066648956,-225.55346155,0.00016568,2]
[404336280,1770066648966,-500.0,0.00016568,2]
[404336281,1770066648976,-500.0,0.00016568,2]
[404336282,1770066648986,-500.0,0.00016568,2]
[404336283,1770066648996,-1501.43163729,0.00016568,2]
[404336284,1770066649005,-500.0,0.00016568,2]
[404336285,1770066649015,-500.0,0.00016568,2]
[404336286,1770066649024,-368.88723017,0.00016568,2]
[404336287,1770066649034,-1500.0,0.00016568,2]
[404336288,1770066649043,-191.30611065,0.00016568,2]
[404336289,1770066649055,-432.32446254,0.00016568,2]
[404336290,1770066649066,-500.0,0.00016568,2]
[404336291,1770066649076,-500.0,0.00016568,2]
[404336292,1770066649086,-385.68955508,0.00016568,2]
[404336293,1770066649096,-503.30357537,0.00016568,2]
[404336294,1770066649106,-1002.44429427,0.00016568,2]
[404336295,1770066649117,-1500.0,0.00016568,2]
[404336296,1770066649126,-408.63714551,0.00016568,2]
[404336297,1770066649137,-1003.56470175,0.00016568,2]
[404336298,1770066649147,-500.0,0.00016576,2]
[404336299,1770066649159,-3000.0,0.00016712,2]
[404336300,1770066649170,-3000.0,0.00016712,2]
[404336301,1770066649180,-2016.45192786,0.00016712,2]
[404336302,1770066649189,-165.79,0.00016712,2]
[404336303,1770066649199,-500.0,0.000168,2]
[404336304,1770066649208,-233.51889341,0.00016836,2]
[404336305,1770066649218,-280.03725112,0.00016836,2]
[404336306,1770066649227,-1910.18787185,0.00016836,2]
[404336307,1770066649237,-500.0,0.00016904,2]
[404336308,1770066649247,-300.0,0.00017,2]
[404336309,1770066649256,-300.0,0.00017021,2]
[404336310,1770066649265,-1000.0,0.00017112,2]
[404336311,1770066649274,-500.0,0.00017116,2]
[404336312,1770066649283,-1000.0,0.00017116,2]
[404336313,1770066649293,-500.0,0.00017124,2]
[404336314,1770066649302,-3500.0,0.0001726,2]
[404336315,1770066649312,-1000.0,0.0001726,2]
[404336316,1770066649322,-475.39944629,0.0001726,2]
[404336317,1770066649331,-159.60859955,0.00017269,2]
[404336318,1770066649341,-9035.0,0.00017333,2]
[404336319,1770066649350,-242.15909246,0.00017384,2]
[404336320,1770066649359,-290.39862941,0.00017384,2]
[404336321,1770066649369,-1980.86482311,0.00017384,2]
[404336322,1770066649378,-1000.0,0.00017409,2]
[404336323,1770066649387,-1000.0,0.00017441,2]
[404336324,1770066649396,-1091.90016811,0.00017473,2]
[404336325,1770066649405,-1987.77689078,0.00017473,2]
[404336326,1770066649416,-12573.0,0.00017495,2]
[404336327,1770066649425,-13442.50995431,0.000175,2]
[404336328,1770066649435,-1000.0,0.00017534,2]
[404336329,1770066649444,-718.43917855,0.00017534,2]
[404336330,1770066649453,-450.0,0.00017568,2]
[404336331,1770066649463,-500.0,0.00017672,2]
[404336332,1770066649472,-1000.0,0.00017709,2]
[404336333,1770066649481,-25000.0,0.00017786,3]
[404336334,1770066649491,-25000.0,0.00017794,3]
[404336335,1770066649500,-271.46575438,0.00017795,2]
[404336336,1770066649510,-25000.0,0.00017803,3]
[404336337,1770066649520,-2858.77982043,0.00017807,2]
[404336338,1770066649529,-4000.0,0.00017808,2]
[404336339,1770066649539,-1000.0,0.00017808,2]
[404336340,1770066649548,-25000.0,0.00017812,3]
[404336341,1770066649557,-555.54912376,0.0001782,2]
[404336342,1770066649566,-25000.0,0.00017821,3]
[404336343,1770066649576,-25000.0,0.0001783,3]
[404336344,1770066649585,-25000.0,0.00017838,3]
[404336345,1770066649595,-944.63661864,0.00017846,2]
[404336346,1770066649604,-25000.0,0.00017847,3]
[404336347,1770066649613,-25000.0,0.00017856,3]
[404336348,1770066649622,-25000.0,0.00017865,3]
[404336349,1770066649632,-165.62377034,0.0001787,2]
[404336350,1770066649641,-25000.0,0.00017874,3]
[404336351,1770066649650,-162.264,0.00017878,2]
[404336352,1770066649659,-1410.0,0.00017878,2]
[404336353,1770066649668,-616.0,0.00017878,2]
[404336354,1770066649678,-3518.726,0.00017878,2]
[404336355,1770066649687,-1334.0,0.00017878,2]